bitfinex/quotes_SOLUSD_20241222
["timestamp","ask_amount","ask_price","bid_price","bid_amount"]
[1734894652641,20.0,182.0,181.9,1.5076]
[1734894652642,20.0,181.99,181.91,26.12252058]
[1734894652846,20.0,181.99,181.89,26.12252058]
[1734894653041,20.0,181.99,181.9,26.12252058]
[1734894653431,20.0,182.0,181.89,26.12252058]
[1734894653726,20.0,181.96,181.86,26.12252058]
[1734894654129,20.0,181.96,181.87,26.12252058]
[1734894654332,20.0,181.96,181.89,26.12252058]
[1734894654643,20.0,181.96,181.88,26.12252058]
[1734894657327,20.0,181.96,181.87,26.12252058]
[1734894658059,20.0,181.96,181.88,26.12252058]
[1734894658727,20.0,181.96,181.87,26.12252058]
[1734894661361,20.0,181.96,181.88,26.12252058]
[1734894661524,20.0,181.96,181.89,26.12252058]
[1734894662150,7.9016,181.99,181.91,26.12252058]
[1734894663234,7.9016,181.99,181.9,26.12252058]
[1734894663634,7.9016,181.99,181.91,26.12252058]
[1734894664236,7.9016,181.99,181.91,16.33478068]
[1734894664542,7.9016,181.99,181.9,16.33478068]
[1734894665050,7.9016,181.99,181.91,16.33478068]
[1734894665233,7.9016,181.99,181.89,16.33478068]
[1734894665654,20.0,181.96,181.88,24.43478068]
[1734894665824,7.9016,181.99,181.88,24.43478068]
[1734894666335,20.0,181.96,181.88,24.43478068]
[1734894667560,20.0,181.96,181.88,16.33478068]
[1734894673258,20.0,181.92,181.81,10.2811046]
[1734894673443,20.0,181.92,181.82,16.33478068]
[1734894673641,20.0,181.92,181.81,0.6735046]
[1734894674369,20.0,181.9,181.81,0.6735046]
[1734894674959,20.0,181.86,181.81,0.6735046]
[1734894676458,33.7469,181.86,181.81,0.6735046]
[1734894677063,31.398484,181.85,181.81,0.6735046]
[1734894677227,20.0,181.82,181.81,0.6735046]
[1734894679160,7.6216,181.85,181.81,0.6735046]
[1734894681338,20.0,181.82,181.81,0.6735046]
[1734894693979,21.3694,181.85,181.81,0.6735046]
[1734894694186,20.0,181.82,181.81,0.6735046]
[1734894711185,20.0,181.78,181.7,1.581]
[1734894711762,20.0,181.78,181.64,13.7629]
[1734894711763,20.0,181.78,181.66,17.94609233]
[1734894712191,13.7536,181.77,181.66,17.94609233]
[1734894712363,20.0,181.74,181.66,1.581]
[1734894713392,20.0,181.7,181.63,0.6735046]
[1734894714294,20.0,181.66,181.63,0.6735046]
[1734894715587,20.0,181.64,181.63,0.6735046]
[1734894716170,20.0,181.67,181.63,0.6735046]
[1734894717095,20.0,181.68,181.63,0.6735046]
[1734894721689,20.0,181.65,181.63,0.6735046]
[1734894722594,23.776884,181.64,181.63,0.6735046]
[1734894723300,23.776884,181.64,181.54,1.581]
[1734894723301,20.0,181.61,181.54,1.581]
[1734894723501,20.0,181.61,181.52,6.0691]
[1734894723698,20.0,181.59,181.52,6.0691]
[1734894724783,20.0,181.59,181.52,32.30082474]
[1734894725197,20.0,181.61,181.55,26.23172474]
[1734894725501,20.0,181.62,181.54,26.23172474]
[1734894725908,20.0,181.62,181.53,26.23172474]
[1734894727712,20.0,181.62,181.52,32.30082474]
[1734894728010,20.0,181.62,181.53,26.23172474]
[1734894728683,20.0,181.62,181.52,32.30082474]
[1734894730411,20.0,181.62,181.52,6.0691]
[1734894732397,20.0,181.6,181.5,1.5929]
[1734894732596,20.0,181.62,181.5,1.5929]
[1734894733090,43.776884,181.64,181.5,1.5929]
[1734894734107,13.7642,181.63,181.5,1.5929]
[1734894734282,20.0,181.6,181.5,1.5929]
[1734894734610,20.0,181.58,181.5,1.5929]
[1734894734812,20.0,181.58,181.46,0.82605627]
[1734894734813,20.0,181.58,181.46,1.5929]
[1734894736005,20.0,181.54,181.46,1.5929]
[1734894736408,20.0,181.54,181.45,0.6735046]
[1734894736592,20.0,181.53,181.45,0.6735046]
[1734894737095,20.0,181.46,181.29,16.63371074]
[1734894737294,20.0,181.46,181.3,16.42164741]
[1734894737501,20.0,181.42,181.29,24.95535815]
[1734894737707,20.0,181.42,181.29,16.42164741]
[1734894738261,20.0,181.42,181.27,16.63477881]
[1734894738262,20.0,181.38,181.27,0.6735046]
[1734894738932,20.0,181.38,181.28,26.32172079]
[1734894739121,6.2326,181.41,181.31,26.32172079]
[1734894739293,6.2326,181.41,181.3,26.32172079]
[1734894739816,20.0,181.37,181.27,1.50058274]
[1734894739990,20.0,181.36,181.27,0.6735046]
[1734894740587,20.0,181.37,181.27,0.6735046]
[1734894741212,33.784,181.37,181.27,0.6735046]
[1734894741537,20.0,181.33,181.27,0.6735046]
[1734894742199,20.0142,181.41,181.27,0.6735046]
[1734894742400,20.0,181.38,181.27,0.6735046]
[1734894742607,20.0,181.37,181.27,0.6735046]
[1734894743117,20.0,181.33,181.27,0.6735046]
[1734894747357,20.0,181.34,181.27,0.6735046]
[1734894747969,13.7816,181.4,181.27,0.6735046]
[1734894749045,41.3449,181.4,181.27,0.6735046]
[1734894749367,23.776884,181.39,181.27,0.6735046]
[1734894749963,20.0,181.36,181.27,0.6735046]
[1734894750168,20.0,181.34,181.27,0.6735046]
[1734894750327,7.7571,181.41,181.27,0.6735046]
[1734894750659,13.7817,181.4,181.27,0.6735046]
[1734894751272,13.7817,181.4,181.28,1.5276]
[1734894754750,13.7817,181.4,181.28,27.84932079]
[1734894755160,13.7817,181.4,181.28,1.5276]
[1734894755696,27.5582,181.44,181.28,27.84932079]
[1734894755874,13.7793,181.44,181.3,26.32172079]
[1734894756173,13.7793,181.44,181.29,32.98492079]
[1734894756368,13.7793,181.44,181.29,6.6632]
[1734894756963,13.7793,181.44,181.29,32.98492079]
[1734894757365,13.7793,181.44,181.29,6.6632]
[1734894757572,13.7793,181.44,181.29,32.98492079]
[1734894758373,13.7793,181.44,181.3,26.32172079]
[1734894759266,13.7793,181.44,181.29,32.98492079]
[1734894759777,13.7793,181.44,181.3,26.32172079]
[1734894761283,13.7793,181.44,181.32,26.32172079]
[1734894761466,13.7793,181.44,181.3,26.32172079]
[1734894762179,13.7793,181.44,181.29,32.98492079]
[1734894762354,20.0,181.41,181.29,6.6632]
[1734894762753,13.7816,181.4,181.29,6.6632]
[1734894763175,20.0,181.4,181.29,32.98492079]
[1734894763776,13.7796,181.43,181.3,26.32172079]
[1734894764161,13.7796,181.43,181.29,32.98492079]
[1734894765982,20.0,181.4,181.29,6.6632]
[1734894767165,13.7824,181.39,181.29,6.6632]
[1734894768987,20.0,181.34,181.27,0.6735046]
[1734894774264,7.8485,181.29,181.27,0.6735046]
[1734894774464,20.0,181.26,181.18,258.487809]
[1734894775092,33.7925,181.26,181.18,258.487809]
[1734894775291,23.776884,181.25,181.18,258.487809]
[1734894775486,33.7925,181.26,181.18,258.487809]
[1734894782696,20.0,181.26,181.18,260.113309]
[1734894782903,1.5245,181.32,181.19,26.32172079]
[1734894783105,15.3124,181.32,181.18,260.113309]
[1734894783585,42.8879,181.32,181.18,260.113309]
[1734894783782,70.4634,181.32,181.18,258.487809]
[1734894784289,20.0,181.28,181.18,258.487809]
[1734894784474,20.0,181.28,181.19,1.6255]
[1734894784678,20.0,181.28,181.2,6.5679]
[1734894784900,20.0,181.29,181.2,6.5679]
[1734894785097,13.7879,181.32,181.2,6.5679]
[1734894786703,23.776884,181.31,181.2,6.5679]
[1734894786890,13.7892,181.3,181.2,6.5679]
[1734894787078,20.0,181.27,181.2,6.5679]
[1734894787482,20.0,181.27,181.19,1.6255]
[1734894787977,20.0,181.27,181.18,258.487809]
[1734894788201,20.0,181.23,181.18,258.487809]
[1734894792005,20.0,181.19,181.18,258.487809]
[1734894792595,43.776884,181.19,181.18,258.487809]
[1734894792795,20.0,181.19,181.18,258.487809]
[1734894793006,20.0,181.19,181.18,76.6285944]
[1734894793190,20.0,181.19,181.18,9.61260152]
[1734894793191,43.776884,181.19,181.18,9.61260152]
[1734894793397,20.0,181.15,181.09,2.92956295]
[1734894793893,20.0,181.15,180.92,26.32172079]
[1734894793894,13.8045,181.1,180.92,26.32172079]
[1734894794232,20.0,181.07,180.92,42.93596081]
[1734894794796,20.0,181.07,180.91,2.2990046]
[1734894795093,20.0,181.03,180.91,2.2990046]
[1734894795688,20.0,180.99,180.91,2.2990046]
[1734894795892,20.0,180.98,180.91,2.2990046]
[1734894798087,23.776884,180.97,180.91,0.6735046]
[1734894798287,20.0,180.94,180.91,0.6735046]
[1734894800213,20.0,180.92,180.91,0.6735046]
[1734894800715,20.0,180.9,180.82,6.5679]
[1734894800908,20.0,180.89,180.82,6.5679]
[1734894801313,20.0,180.89,180.78,1.6255]
[1734894801619,20.0,180.89,180.78,1.1255]
[1734894802627,20.0,180.87,180.78,1.1255]
[1734894802797,20.0,180.83,180.72,0.6735046]
[1734894802997,20.0,180.75,180.72,0.6735046]
[1734894803296,20.0,180.79,180.72,0.6735046]
[1734894803513,20.0,180.75,180.72,0.6735046]
[1734894803718,20.0,180.71,180.54,0.6735046]
[1734894803934,20.0,180.67,180.54,0.6735046]
[1734894804591,20.0,180.7,180.55,42.93596081]
[1734894805219,20.65364753,181.98,180.54,2.3335046]
[1734894805220,20.0,180.71,180.57,42.93596081]
[1734894805405,20.0,180.79,180.59,42.93596081]
[1734894805611,20.0,180.75,180.59,42.93596081]
[1734894805814,20.0,180.71,180.59,42.93596081]
[1734894806027,20.0,180.71,180.58,42.93596081]
[1734894806427,20.0,180.74,180.6,42.93596081]
[1734894806605,20.0,180.73,180.58,42.93596081]
[1734894806927,20.0,180.73,180.59,42.93596081]
[1734894807322,20.3316,180.82,180.62,42.93596081]
[1734894807503,20.3316,180.82,180.64,42.93596081]
[1734894807704,22.157511,180.81,180.62,42.93596081]
[1734894808436,20.3316,180.82,180.63,42.93596081]
[1734894808801,23.776884,180.81,180.62,56.77686081]
[1734894809017,23.776884,180.81,180.63,42.93596081]
[1734894809239,42.488597,180.82,180.66,42.93596081]
[1734894809410,20.3316,180.82,180.66,42.93596081]
[1734894809723,20.3316,180.82,180.62,21.9409]
[1734894809724,20.3316,180.82,180.65,42.93596081]
[1734894811100,33.8284,180.79,180.59,8.1]
[1734894811317,33.8284,180.79,180.61,42.93596081]
[1734894811539,33.8284,180.79,180.62,42.93596081]
[1734894811737,20.0,180.79,180.64,42.93596081]
[1734894811940,6.5054,180.82,180.66,42.93596081]
[1734894812223,6.5054,180.82,180.65,42.93596081]
[1734894813103,6.5054,180.82,180.67,42.93596081]
[1734894813366,6.5054,180.82,180.66,42.93596081]
[1734894814128,6.5054,180.82,180.65,42.93596081]
[1734894815424,20.0,180.78,180.62,42.93596081]
[1734894815613,20.0,180.78,180.61,42.93596081]
[1734894816013,20.0,180.78,180.62,42.93596081]
[1734894816227,20.0,180.78,180.63,42.93596081]
[1734894816526,20.0,180.78,180.65,42.93596081]
[1734894816710,6.5054,180.82,180.68,42.93596081]
[1734894817103,6.5054,180.82,180.66,7.9437]
[1734894817304,20.3313,180.82,180.66,7.9437]
[1734894817705,20.3313,180.82,180.66,50.87966081]
[1734894818214,20.0,180.79,180.66,50.87966081]
[1734894818415,20.0,180.79,180.66,7.9437]
[1734894820051,20.0,180.79,180.67,42.93596081]
[1734894821452,20.3313,180.82,180.68,42.93596081]
[1734894821827,6.5054,180.82,180.7,42.93596081]
[1734894822041,6.5054,180.82,180.69,42.93596081]
[1734894822527,6.5054,180.82,180.68,42.93596081]
[1734894822727,6.5054,180.82,180.69,42.93596081]
[1734894823154,6.5054,180.82,180.67,42.93596081]
[1734894823383,6.5054,180.82,180.66,50.87966081]
[1734894823971,20.0,180.79,180.67,42.93596081]
[1734894825723,20.0,180.79,180.68,42.93596081]
[1734894826357,20.0,180.79,180.67,42.93596081]
[1734894826558,20.0,180.78,180.64,56.77546081]
[1734894827055,20.0,180.78,180.65,42.93596081]
[1734894827240,20.0,180.78,180.66,42.93596081]
[1734894828632,20.0,180.78,180.62,42.93596081]
[1734894829130,20.0,180.78,180.63,42.93596081]
[1734894829337,6.1346,180.76,180.61,42.93596081]
[1734894829658,20.0,180.73,180.59,42.93596081]
[1734894829858,20.0,180.73,180.63,42.93596081]
[1734894830354,6.1346,180.76,180.66,42.93596081]
[1734894831155,6.1346,180.76,180.65,42.93596081]
[1734894832554,6.1346,180.76,180.66,42.93596081]
[1734894834354,6.1346,180.76,180.65,26.50176085]
[1734894834661,6.1346,180.76,180.59,49.6305]
[1734894834662,6.1346,180.76,180.67,26.50176085]
[1734894835045,6.1346,180.76,180.66,26.50176085]
[1734894835368,6.1346,180.81,180.7,26.50176085]
[1734894835579,6.1346,180.81,180.65,6.6363]
[1734894835580,6.1346,180.81,180.72,26.50176085]
[1734894835859,6.1346,180.81,180.69,26.50176085]
[1734894836063,6.1346,180.81,180.68,26.50176085]
[1734894836449,13.8274,180.8,180.67,26.50176085]
[1734894836852,20.0,180.77,180.64,26.50176085]
[1734894837559,20.0,180.77,180.63,1.5643]
[1734894837939,20.0,180.77,180.63,28.06606085]
[1734894841073,13.8298,180.77,180.61,26.50176085]
[1734894841768,13.8298,180.77,180.61,40.34306085]
[1734894841968,13.8298,180.77,180.63,26.50176085]
[1734894842474,13.8298,180.77,180.64,26.50176085]
[1734894843172,20.0,180.77,180.65,26.50176085]
[1734894843547,13.8276,180.8,180.65,26.50176085]
[1734894843853,13.8276,180.8,180.66,26.50176085]
[1734894844255,13.8276,180.8,180.65,26.50176085]
[1734894844451,13.8276,180.8,180.61,13.8419]
[1734894844452,20.0,180.77,180.62,26.50176085]
[1734894844661,20.0,180.77,180.61,40.34366085]
[1734894845477,7.8837,180.76,180.59,26.50176085]
[1734894845647,20.0,180.73,180.59,26.50176085]
[1734894846685,7.8837,180.76,180.63,26.50176085]
[1734894846887,7.8837,180.76,180.64,26.50176085]
[1734894847179,7.8837,180.76,180.63,26.50176085]
[1734894847344,7.8837,180.76,180.64,26.50176085]
[1734894847843,7.8837,180.76,180.65,13.8389]
[1734894848561,7.8837,180.76,180.66,26.50176085]
[1734894848953,7.8837,180.76,180.67,26.50176085]
[1734894849152,13.8262,180.82,180.68,26.50176085]
[1734894849153,6.2173,180.8,180.68,26.50176085]
[1734894849369,6.2173,180.8,180.69,26.50176085]
[1734894849767,6.2173,180.8,180.68,26.50176085]
[1734894849948,6.2173,180.8,180.65,6.0621]
[1734894849949,6.2173,180.8,180.66,26.50176085]
[1734894850364,6.2173,180.8,180.68,26.50176085]
[1734894850570,6.2173,180.8,180.66,26.50176085]
[1734894851148,6.2173,180.8,180.67,26.50176085]
[1734894851353,6.2173,180.8,180.68,26.50176085]
[1734894851547,6.2173,180.8,180.66,13.8381]
[1734894851548,6.2173,180.8,180.67,26.50176085]
[1734894851748,20.0452,180.8,180.66,13.8381]
[1734894852669,20.0452,180.8,180.66,40.33986085]
[1734894853171,6.2173,180.8,180.69,26.50176085]
[1734894853360,6.2173,180.8,180.68,40.33836085]
[1734894854271,6.2173,180.8,180.68,13.8366]
[1734894854768,6.2173,180.8,180.68,26.50176085]
[1734894855375,6.2173,180.8,180.69,26.50176085]
[1734894855681,6.2173,180.8,180.68,26.50176085]
[1734894856480,6.2173,180.8,180.69,26.50176085]
[1734894856671,6.2173,180.8,180.7,26.50176085]
[1734894857677,6.2173,180.8,180.69,40.33686085]
[1734894859763,6.2173,180.8,180.71,40.33606085]
[1734894859970,6.2173,180.8,180.72,26.50176085]
[1734894860177,6.2173,180.8,180.71,13.8343]
[1734894860378,6.2173,180.8,180.7,26.50176085]
[1734894861065,6.2173,180.8,180.71,26.50176085]
[1734894861368,6.2173,180.8,180.73,26.50176085]
[1734894861569,6.2173,180.84,180.75,26.50176085]
[1734894861772,6.2173,180.84,180.76,26.50176085]
[1734894862286,6.2173,180.84,180.77,26.50176085]
[1734894863063,6.2173,180.84,180.75,26.50176085]
[1734894863466,6.2173,180.84,180.76,26.50176085]
[1734894863985,6.2173,180.84,180.77,13.8297]
[1734894864283,6.2173,180.84,180.7,33.7322]
[1734894864486,6.2173,180.84,180.72,26.50176085]
[1734894864877,6.2173,180.84,180.76,26.50176085]
[1734894865277,6.2173,180.84,180.74,26.50176085]
[1734894865677,6.2173,180.84,180.75,26.50176085]
[1734894865877,6.2173,180.84,180.76,26.50176085]
[1734894866460,6.2173,180.84,180.77,26.50176085]
[1734894867386,6.2173,180.84,180.74,13.8319]
[1734894867387,6.2173,180.84,180.78,26.50176085]
[1734894868278,1.6664,180.85,180.79,26.50176085]
[1734894868796,6.539,180.88,180.8,26.50176085]
[1734894869406,6.539,180.88,180.82,26.50176085]
[1734894870401,8.1918,180.94,180.83,26.50176085]
[1734894870570,8.1918,180.94,180.79,13.828]
[1734894870571,8.1918,180.94,180.84,26.50176085]
[1734894872181,8.1918,180.94,180.85,26.50176085]
[1734894872502,8.1918,180.94,180.87,26.50176085]
[1734894873296,8.1918,180.94,180.88,26.50176085]
[1734894874796,8.56119805,181.07,180.9,26.50176085]
[1734894874797,1.6528,180.98,180.9,26.50176085]
[1734894875298,1.6528,180.98,180.89,26.50176085]
[1734894875697,1.6528,180.98,180.9,26.50176085]
[1734894875889,1.6528,180.98,180.91,26.50176085]
[1734894876085,1.6528,180.98,180.92,26.50176085]
[1734894877503,1.6528,180.98,180.87,13.8217]
[1734894877504,1.6528,180.98,180.91,26.50176085]
[1734894877680,1.6528,180.98,180.9,26.50176085]
[1734894879274,1.6528,180.98,180.84,8.1]
[1734894879476,1.6528,180.98,180.84,34.60176085]
[1734894879676,20.0,180.96,180.83,26.50176085]
[1734894880092,1.6528,180.98,180.89,26.50176085]
[1734894880300,1.6528,180.98,180.9,26.50176085]
[1734894880900,1.6528,180.98,180.91,26.50176085]
[1734894883442,1.6528,180.98,180.88,26.50176085]
[1734894883612,1.6528,180.98,180.89,26.50176085]
[1734894883908,1.6528,180.98,180.88,26.50176085]
[1734894884215,1.6528,180.98,180.9,26.50176085]
[1734894884412,1.6528,180.98,180.92,26.50176085]
[1734894885186,1.6528,180.98,180.89,26.50176085]
[1734894885484,1.6528,180.98,180.87,26.50176085]
[1734894886520,1.6528,180.98,180.88,26.50176085]
[1734894886822,1.6528,180.98,180.89,26.50176085]
[1734894887813,1.6528,180.98,180.93,26.50176085]
[1734894888117,6.539,180.99,180.93,26.50176085]
[1734894888321,6.539,180.99,180.89,26.50176085]
[1734894889208,6.539,180.99,180.9,26.50176085]
[1734894889410,6.539,180.99,180.89,26.50176085]
[1734894890982,6.539,180.99,180.91,26.50176085]
[1734894891184,6.539,180.99,180.92,26.50176085]
[1734894892906,1.5561,181.02,180.93,26.50176085]
[1734894893112,1.5561,181.02,180.95,26.50176085]
[1734894893410,1.5561,181.02,180.94,26.50176085]
[1734894893603,1.5561,181.02,180.93,26.50176085]
[1734894893983,1.5561,181.02,180.91,26.50176085]
[1734894894398,1.5561,181.02,180.9,36.15726085]
[1734894894602,1.5561,181.02,180.91,26.50176085]
[1734894895315,1.5561,181.02,180.92,26.50176085]
[1734894895689,1.5561,181.02,180.93,26.50176085]
[1734894898795,1.5561,181.02,180.92,26.50176085]
[1734894899219,1.5561,181.02,180.91,40.32076085]
[1734894899617,1.5561,181.02,180.91,26.50176085]
[1734894900826,1.5561,181.02,180.86,26.50176085]
[1734894900827,6.3094,181.01,180.86,26.50176085]
[1734894901210,6.3094,181.01,180.88,26.50176085]
[1734894901396,6.3094,181.01,180.9,26.50176085]
[1734894901597,6.3094,181.01,180.91,26.50176085]
[1734894901810,6.3094,181.01,180.95,26.50176085]
[1734894902006,6.3094,181.01,180.93,26.50176085]
[1734894903320,6.3094,181.01,180.89,26.50176085]
[1734894903519,6.3094,181.01,180.83,6.0189]
[1734894903520,20.0,180.98,180.81,8.1]
[1734894903721,20.0,180.98,180.83,26.50176085]
[1734894904025,6.2688,180.96,180.83,26.50176085]
[1734894904525,20.0,180.93,180.79,26.50176085]
[1734894904700,6.2688,180.96,180.81,26.50176085]
[1734894904908,6.2688,180.96,180.83,26.50176085]
[1734894905105,6.2688,180.96,180.85,26.50176085]
[1734894905308,6.2688,180.96,180.87,26.50176085]
[1734894905523,6.2688,180.96,180.81,34.60176085]
[1734894905524,6.2688,180.96,180.86,26.50176085]
[1734894905700,6.2688,180.96,180.89,26.50176085]
[1734894906122,6.2688,180.96,180.9,26.50176085]
[1734894906315,6.2688,180.96,180.89,26.50176085]
[1734894907436,1.5446,180.97,180.9,26.50176085]
[1734894907651,7.8134,181.01,180.91,26.50176085]
[1734894908034,7.8134,181.01,180.92,26.50176085]
[1734894908247,6.2688,181.01,180.96,26.50176085]
[1734894908538,1.6592,181.06,181.0,26.50176085]
[1734894908744,6.6565,181.07,181.01,26.50176085]
[1734894908911,6.6565,181.07,181.02,26.50176085]
[1734894909537,6.6565,181.12,181.06,26.50176085]
[1734894909699,0.5058388,181.13,181.06,26.50176085]
[1734894909902,0.5058388,181.13,181.07,26.50176085]
[1734894910411,0.5058388,181.13,181.08,26.50176085]
[1734894910806,0.5058388,181.13,181.06,26.50176085]
[1734894911109,0.5058388,181.13,181.05,26.50176085]
[1734894911306,0.5058388,181.13,181.02,26.50176085]
[1734894912208,20.0,181.12,181.0,42.89076255]
[1734894912404,33.803,181.12,180.99,42.89076255]
[1734894912634,20.0,181.12,181.02,42.89076255]
[1734894913205,20.5058388,181.13,181.02,42.89076255]
[1734894913838,0.5058388,181.13,181.04,42.89076255]
[1734894914206,0.5058388,181.13,181.05,42.89076255]
[1734894915205,0.5058388,181.13,181.04,42.89076255]
[1734894915424,0.5058388,181.13,181.03,42.89076255]
[1734894915813,0.5058388,181.13,181.04,42.89076255]
[1734894916125,0.5058388,181.13,181.05,42.89076255]
[1734894917953,0.5058388,181.13,181.07,42.89076255]
[1734894919032,0.5058388,181.13,181.06,42.89076255]
[1734894919220,0.5058388,181.13,181.04,42.89076255]
[1734894919411,0.5058388,181.13,181.05,42.89076255]
[1734894919719,0.5058388,181.13,181.02,42.89076255]
[1734894920320,0.5058388,181.13,181.03,42.89076255]
[1734894920516,0.5058388,181.13,180.99,8.1]
[1734894920517,20.0,181.12,181.01,42.89076255]
[1734894921939,20.0,181.12,181.04,42.89076255]
[1734894922252,0.5058388,181.13,181.07,42.89076255]
[1734894923045,0.5058388,181.13,181.02,0.82816398]
[1734894923046,0.5058388,181.13,181.05,42.89076255]
[1734894923212,0.5058388,181.13,181.06,42.89076255]
[1734894923617,0.5058388,181.13,181.08,66.66764655]
[1734894923945,0.5058388,181.13,181.05,42.89076255]
[1734894924128,0.5058388,181.13,181.06,42.89076255]
[1734894925340,20.5058388,181.13,180.97,9.6807]
[1734894925537,20.5058388,181.13,180.97,52.57146255]
[1734894926039,20.5058388,181.13,180.98,42.89076255]
[1734894926345,20.5058388,181.13,180.99,42.89076255]
[1734894926514,20.0,181.12,180.99,42.89076255]
[1734894927338,20.0,181.12,181.0,23.776884]
[1734894928940,20.0,181.12,180.99,23.776884]
[1734894929245,20.0,181.12,181.0,23.776884]
[1734894929545,0.5058388,181.13,181.02,42.89076255]
[1734894929745,0.5058388,181.13,181.03,42.89076255]
[1734894930132,0.5058388,181.13,181.02,66.66764655]
[1734894931120,0.5058388,181.13,181.01,23.776884]
[1734894931447,34.3086388,181.13,181.0,8.1]
[1734894934421,34.3086388,181.13,181.0,23.776884]
[1734894934628,20.0,181.09,180.93,8.1]
[1734894935157,20.0,181.05,180.91,9.6807]
[1734894935529,20.0,181.05,180.91,52.57146255]
[1734894936148,20.0,181.05,180.91,9.6807]
[1734894936432,20.0,181.05,180.92,23.776884]
[1734894937825,20.0,181.05,180.94,23.776884]
[1734894938741,20.0,181.05,180.93,23.776884]
[1734894939448,20.0,181.05,180.93,66.66764655]
[1734894939637,1.5924,181.07,180.95,23.776884]
[1734894940345,1.5924,181.07,180.95,66.66764655]
[1734894940557,1.5924,181.07,180.95,42.89076255]
[1734894941451,1.5924,181.07,180.96,51.11625255]
[1734894941664,1.5924,181.07,181.01,42.89076255]
[1734894942159,1.5924,181.07,180.98,42.89076255]
[1734894942965,1.5924,181.07,180.99,42.89076255]
[1734894946160,1.5924,181.07,180.98,27.23047087]
[1734894947960,1.5924,181.07,180.98,0.82839579]
[1734894948154,1.5924,181.07,180.93,34.50207508]
[1734894948362,13.8075,181.06,180.91,36.16777508]
[1734894948658,13.8075,181.06,180.89,13.805]
[1734894948659,1.5093,181.01,180.89,13.805]
[1734894948838,20.0,180.99,180.87,8.1]
[1734894949843,6.3189,180.98,180.84,0.12549]
[1734894950167,20.1325,180.98,180.84,8.22549]
[1734894950357,20.0,180.95,180.82,51.07597249]
[1734894951061,20.0,180.95,180.82,8.1]
[1734894951359,20.0,180.95,180.82,51.07597249]
[1734894951534,20.0,180.95,180.82,8.1]
[1734894952062,6.3189,180.93,180.81,8.1]
[1734894952270,20.0,180.9,180.76,42.97597249]
[1734894952442,20.0,180.9,180.75,8.1]
[1734894953561,33.8203,180.9,180.75,8.1]
[1734894954136,6.2713,180.89,180.75,8.1]
[1734894954558,6.2713,180.89,180.75,51.07597249]
[1734894954732,6.2713,180.89,180.77,42.97597249]
[1734894957034,6.2713,180.89,180.75,51.07597249]
[1734894957656,1.501,180.87,180.73,51.07597249]
[1734894957857,20.0,180.85,180.72,51.07597249]
[1734894958064,20.0,180.85,180.72,8.1]
[1734894958250,20.0,180.85,180.71,51.07597249]
[1734894958664,20.0,180.85,180.72,42.97597249]
[1734894959868,6.2713,180.84,180.7,42.97597249]
[1734894960165,6.2713,180.79,180.68,0.162519]
[1734894961972,6.2713,180.79,180.71,0.12549]
[1734894962157,6.2713,180.79,180.75,42.97597249]
[1734894962339,6.2713,180.79,180.71,0.82958854]
[1734894962340,6.2713,180.79,180.74,42.97597249]
[1734894962544,6.2713,180.84,180.74,42.97597249]
[1734894963146,6.2713,180.84,180.74,23.776884]
[1734894963748,6.2713,180.84,180.71,8.1]
[1734894965160,6.2713,180.84,180.73,42.97597249]
[1734894966072,6.2713,180.84,180.77,66.75285649]
[1734894967776,6.2713,180.84,180.77,23.776884]
[1734894968374,6.2713,180.84,180.76,23.776884]
[1734894968674,6.2713,180.84,180.76,66.75285649]
[1734894968973,6.2713,180.84,180.78,42.97597249]
[1734894969268,6.2713,180.84,180.79,23.776884]
[1734894969878,1.5054,180.9,180.79,23.776884]
[1734894970065,6.0009,180.89,180.8,42.97597249]
[1734894970380,6.0009,180.89,180.81,66.75285649]
[1734894970675,6.0009,180.93,180.86,42.97597249]
[1734894970861,6.0009,180.93,180.85,23.776884]